bitfinex/quotes_SOLUSD_20240920
["timestamp","ask_amount","ask_price","bid_price","bid_amount"]
[1726810554177,7.2528,149.0,148.95,0.4649268]
[1726810555671,24.153354,148.99,148.95,0.4649268]
[1726810557074,25.49405513,148.99,148.95,0.4649268]
[1726810557262,32.20595513,148.99,148.95,0.4649268]
[1726810557951,24.153354,148.99,148.95,0.4649268]
[1726810558156,23.902374,148.97,148.95,0.4649268]
[1726810558371,30.865254,148.99,148.95,0.4649268]
[1726810559681,24.153354,148.97,148.95,0.4649268]
[1726810561390,23.902374,148.97,148.95,0.4649268]
[1726810561584,0.25098,148.99,148.95,0.4649268]
[1726810561784,0.12549,148.98,148.95,0.4649268]
[1726810562379,24.027864,148.99,148.95,0.4649268]
[1726810562883,7.2528,149.0,148.95,0.4649268]
[1726810563461,8.59350113,149.0,148.95,0.4649268]
[1726810563688,6.7119,148.99,148.95,0.4649268]
[1726810563878,1.34070113,148.98,148.95,0.4649268]
[1726810564384,23.902374,148.97,148.95,0.4649268]
[1726810564685,23.902374,148.98,148.95,0.4649268]
[1726810565468,7.2528,149.0,148.95,0.4649268]
[1726810565469,7.2528,149.0,148.95,0.4137182]
[1726810565674,24.153354,148.99,148.95,0.4137182]
[1726810566394,30.865254,148.99,148.95,0.4137182]
[1726810567170,24.153354,148.99,148.95,0.4137182]
[1726810567369,7.2528,149.0,148.95,0.4137182]
[1726810568268,0.12549,148.99,148.95,0.4137182]
[1726810568588,1.46619113,148.99,148.95,0.4137182]
[1726810568784,23.776884,148.98,148.95,0.4137182]
[1726810569096,24.153354,148.99,148.95,0.4137182]
[1726810569777,30.865354,148.99,148.95,0.4137182]
[1726810570367,8.05320113,148.98,148.95,0.4137182]
[1726810570768,30.866054,148.97,148.95,0.4137182]
[1726810570993,25.49405513,148.96,148.95,0.4137182]
[1726810572288,0.25098,148.99,148.95,0.4137182]
[1726810572597,6.83789,148.98,148.95,0.4137182]
[1726810572974,23.776884,148.97,148.95,0.4137182]
[1726810574108,0.37647,148.96,148.95,0.4137182]
[1726810574280,1.34070113,148.99,148.95,0.4137182]
[1726810574588,7.2528,149.0,148.95,0.4137182]
[1726810575379,13.9642,149.0,148.95,0.4137182]
[1726810575779,0.37647,148.99,148.95,0.4137182]
[1726810575983,24.153354,148.99,148.95,0.4137182]
[1726810577100,23.902374,148.97,148.95,0.4137182]
[1726810577293,30.865454,148.99,148.95,0.4137182]
[1726810577489,24.153354,148.97,148.95,0.4137182]
[1726810577687,25.49405513,148.96,148.95,0.4137182]
[1726810577998,32.20725513,148.96,148.95,0.4137182]
[1726810578777,30.866554,148.96,148.95,0.4137182]
[1726810580504,30.867854,148.93,148.92,0.2548513]
[1726810580875,38.718154,148.93,148.92,0.2548513]
[1726810581076,32.003654,148.93,148.92,0.2548513]
[1726810582693,38.718154,148.93,148.92,0.2548513]
[1726810583908,27.09187,148.91,148.9,0.1027186]
[1726810584195,52.20945513,148.91,148.9,0.1027186]
[1726810584401,70.26945513,148.91,148.9,0.1027186]
[1726810584980,70.26945513,148.91,148.88,0.2548513]
[1726810584981,47.26277,148.89,148.88,0.2548513]
[1726810585188,79.023854,148.89,148.88,0.2548513]
[1726810585590,80.36455513,148.89,148.88,0.2548513]
[1726810585902,60.19455513,148.89,148.88,0.2548513]
[1726810586481,25.08522132,148.91,148.88,0.2548513]
[1726810586697,18.06,148.91,148.88,0.2548513]
[1726810586881,19.40070113,148.91,148.88,0.2548513]
[1726810587080,24.7755,148.91,148.88,0.2548513]
[1726810587906,0.12549,148.89,148.88,0.2548513]
[1726810588199,8.30798113,148.89,148.88,0.2548513]
[1726810588587,32.21035513,148.89,148.88,0.2548513]
[1726810589116,24.153354,148.89,148.88,0.2548513]
[1726810590995,32.21035513,148.89,148.88,0.2548513]
[1726810591399,30.869654,148.89,148.88,0.2548513]
[1726810594081,52.21035513,148.89,148.88,0.2548513]
[1726810595204,20.25098,148.89,148.88,0.2548513]
[1726810595582,0.25098,148.89,148.88,0.2548513]
[1726810596404,0.37647,148.89,148.88,0.2548513]
[1726810597194,8.43347113,148.89,148.88,0.2548513]
[1726810597404,32.21035513,148.89,148.88,0.2548513]
[1726810597716,52.21035513,148.89,148.88,0.2548513]
[1726810598603,72.38035513,148.89,148.88,0.2548513]
[1726810599915,71.039654,148.89,148.88,0.2548513]
[1726810602112,6.7172,148.87,148.86,0.0684587]
[1726810602310,26.96818,148.87,148.86,0.0684587]
[1726810602518,50.745064,148.87,148.86,0.0684587]
[1726810603524,52.08576513,148.87,148.86,0.0684587]
[1726810603916,50.745064,148.87,148.86,0.0684587]
[1726810604332,50.870554,148.87,148.86,0.0684587]
[1726810606409,71.040554,148.87,148.86,0.0684587]
[1726810606624,71.040554,148.87,148.81,0.3888603]
[1726810606625,24.153354,148.82,148.81,0.3888603]
[1726810606925,30.872854,148.82,148.81,0.3888603]
[1726810607131,50.872854,148.82,148.81,0.3888603]
[1726810609329,6.7213,148.78,148.77,0.3604484]
[1726810609629,32.21535513,148.78,148.77,0.3604484]
[1726810609931,24.153354,148.78,148.77,0.3604484]
[1726810610609,32.21535513,148.78,148.77,0.3604484]
[1726810611323,30.874654,148.78,148.77,0.3604484]
[1726810611538,24.153354,148.78,148.77,0.3604484]
[1726810612103,26.72,148.81,148.77,0.3604484]
[1726810612435,23.902374,148.8,148.77,0.3604484]
[1726810613923,23.776884,148.8,148.77,0.3604484]
[1726810614630,0.37647,148.79,148.77,0.3604484]
[1726810615617,6.7213,148.78,148.77,0.3604484]
[1726810615811,30.874654,148.78,148.77,0.3604484]
[1726810616017,27.7332,148.87,148.77,0.3604484]
[1726810616242,6.7191,148.83,148.77,0.3604484]
[1726810616425,6.7186,148.84,148.77,0.3604484]
[1726810616938,6.7191,148.83,148.77,0.3604484]
[1726810617338,23.902374,148.82,148.77,0.3604484]
[1726810617521,6.97098,148.81,148.77,0.3604484]
[1726810617718,30.622874,148.8,148.77,0.3604484]
[1726810617921,6.84599,148.8,148.77,0.3604484]
[1726810618217,8.31248113,148.79,148.77,0.3604484]
[1726810619031,6.7213,148.78,148.77,0.3604484]
[1726810619339,1.59168113,148.79,148.77,0.3604484]
[1726810619549,1.59168113,148.79,148.66,272.4417979]
[1726810619550,20.37647,148.73,148.66,7.0277979]
[1726810619711,20.37647,148.73,148.62,4.96114827]
[1726810619712,0.37647,148.73,148.62,3.7903083]
[1726810619917,24.153354,148.71,148.62,3.7903083]
[1726810620119,44.153354,148.75,148.66,17.4615]
[1726810620418,24.153354,148.73,148.66,17.4615]
[1726810620613,30.877354,148.73,148.66,17.4615]
[1726810620838,0.12549,148.71,148.66,17.4615]
[1726810621133,23.902374,148.71,148.66,17.4615]
[1726810621337,6.85089,148.69,148.62,21.2518083]
[1726810621635,24.153354,148.68,148.62,21.2518083]
[1726810622725,0.12549,148.7,148.62,21.2518083]
[1726810623040,24.153354,148.7,148.62,21.2518083]
[1726810623432,0.37647,148.7,148.62,21.2518083]
[1726810623831,6.7235,148.74,148.62,21.2518083]
[1726810624037,6.7228,148.75,148.62,51.71024072]
[1726810624247,6.7231,148.74,148.62,51.71024072]
[1726810625317,0.12549,148.75,148.63,20.0]
[1726810625523,26.2937,148.76,148.63,20.0]
[1726810625840,6.7231,148.74,148.62,51.71024072]
[1726810626337,0.12549,148.73,148.62,51.71024072]
[1726810626661,6.84909,148.73,148.62,51.71024072]
[1726810627746,6.97508,148.72,148.62,21.2518083]
[1726810627932,23.776884,148.71,148.62,21.2518083]
[1726810628123,23.902374,148.72,148.62,21.2518083]
[1726810628623,23.776884,148.73,148.62,21.2518083]
[1726810629142,6.7227,148.75,148.63,20.0]
[1726810629342,6.7231,148.74,148.63,20.0]
[1726810630316,7.02591702,148.79,148.68,17.3909]
[1726810630530,19.56500113,148.8,148.69,3.3956]
[1726810630843,6.7213,148.78,148.69,3.3956]
[1726810631660,1.34070113,148.77,148.69,3.3956]
[1726810632227,24.153354,148.76,148.69,3.3956]
[1726810632435,30.875654,148.76,148.69,3.3956]
[1726810632639,18.2243,148.8,148.69,3.3956]
[1726810632830,6.7209,148.79,148.69,3.3956]
[1726810633438,6.7214,148.78,148.69,3.3956]
[1726810634056,6.7219,148.77,148.69,3.3956]
[1726810634834,24.153354,148.76,148.69,3.3956]
[1726810635153,24.153354,148.76,148.68,17.3909]
[1726810635154,25.49405513,148.76,148.68,17.3909]
[1726810635449,24.153354,148.74,148.68,17.3909]
[1726810635652,1.34070113,148.73,148.68,17.3909]
[1726810635839,24.153354,148.72,148.65,3.3956]
[1726810636225,24.027864,148.72,148.65,3.3956]
[1726810636429,23.902374,148.72,148.65,3.3956]
[1726810636729,30.626374,148.72,148.65,3.3956]
[1726810637131,23.902374,148.72,148.65,3.3956]
[1726810637532,0.12549,148.75,148.65,3.3956]
[1726810637754,18.2243,148.8,148.65,23.3956]
[1726810637981,6.7214,148.78,148.66,23.776884]
[1726810638277,1.34070113,148.78,148.65,23.3956]
[1726810638944,6.7226,148.76,148.65,23.3956]
[1726810639446,23.902374,148.75,148.65,23.3956]
[1726810640057,6.7217,148.78,148.65,23.3956]
[1726810640262,7.5309,148.81,148.69,23.776884]
[1726810640474,19.2084,148.84,148.7,54.20230242]
[1726810640475,6.7191,148.83,148.7,54.20230242]
[1726810640654,19.2084,148.84,148.7,54.20230242]
[1726810641067,19.2084,148.84,148.7,34.20230242]
[1726810641368,6.72,148.81,148.7,34.20230242]
[1726810641681,6.7195,148.82,148.7,34.20230242]
[1726810641871,23.902374,148.81,148.7,34.20230242]
[1726810642059,23.902374,148.81,148.71,19.00349434]
[1726810643961,30.622274,148.81,148.7,10.45787]
[1726810644769,0.12549,148.81,148.7,10.45787]
[1726810645184,6.7204,148.8,148.7,10.45787]
[1726810645360,0.12549,148.81,148.7,10.45787]
[1726810645762,6.84549,148.81,148.7,10.45787]
[1726810649196,23.776884,148.82,148.72,17.3909]
[1726810649358,20.0,148.84,148.73,25.49745177]
[1726810649671,23.81641772,148.87,148.74,1.34405966]
[1726810650076,23.81641772,148.87,148.73,24.153354]
[1726810650275,6.719,148.83,148.73,24.153354]
[1726810650861,6.7196,148.82,148.73,24.153354]
[1726810651277,6.7191,148.83,148.73,24.153354]
[1726810651474,6.7195,148.82,148.72,47.79657754]
[1726810651785,8.06070113,148.81,148.72,17.3909]
[1726810651979,1.34070113,148.83,148.72,17.3909]
[1726810652289,6.72,148.81,148.72,17.3909]
[1726810653275,23.776884,148.83,148.72,17.3909]
[1726810653483,30.496284,148.83,148.72,17.3909]
[1726810655391,0.2919897,148.85,148.76,0.25098]
[1726810655681,0.2919897,148.85,148.78,17.3909]
[1726810655859,0.2919897,148.85,148.8,0.37647]
[1726810658084,0.2919897,148.85,148.79,3.3674]
[1726810660669,0.2919897,148.85,148.8,30.867354]
[1726810661075,0.2919897,148.85,148.8,60.867354]
[1726810661387,0.2919897,148.85,148.82,24.153354]
[1726810662089,0.2919897,148.85,148.84,24.153354]
[1726810662273,0.2919897,148.85,148.84,0.12549]
[1726810662592,27.0347,148.97,148.85,3.3674]
[1726810662593,6.7132,148.96,148.85,3.3674]
[1726810662797,0.0725505,148.86,148.85,34.234754]
[1726810663261,5.05e-05,148.86,148.85,54.234754]
[1726810663467,0.2904495,148.91,148.88,0.25098]
[1726810663690,0.2904495,148.91,148.89,16.1709]
[1726810668890,0.2904495,148.91,148.9,1.34295656]
[1726810670088,0.2904495,148.91,148.89,16.1709]
[1726810671483,0.2904495,148.91,148.89,16.1709]
[1726810671874,0.2904495,148.91,148.9,1.34273594]
[1726810672073,0.2904495,148.91,148.9,24.153354]
[1726810673670,0.2904495,148.91,148.89,16.1709]
[1726810676979,0.2904495,148.91,148.9,1.34278344]
[1726810677507,0.2904495,148.91,148.9,24.153354]
[1726810677709,0.2904495,148.91,148.89,16.1709]
[1726810680394,0.2904495,148.91,148.86,6.714]
[1726810682387,0.2904495,148.91,148.87,24.153354]
[1726810683209,0.2904495,148.91,148.86,44.153354]
[1726810683582,0.2904495,148.91,148.85,16.171]
[1726810683783,6.7159,148.9,148.84,6.714]
[1726810683983,0.2904495,148.91,148.84,6.714]
[1726810684196,8.18209113,148.9,148.84,6.714]
[1726810684407,6.84139,148.9,148.84,6.714]
[1726810684603,20.2904495,148.91,148.82,6.714]
[1726810684898,6.7164,148.89,148.82,6.714]
[1726810685095,1.34070113,148.88,148.82,6.714]
[1726810685291,30.869254,148.9,148.82,6.714]
[1726810687094,30.869254,148.9,148.81,16.171]
[1726810687319,30.743764,148.9,148.81,16.171]
[1726810688415,20.2904495,148.91,148.81,16.171]
[1726810688592,0.2904495,148.91,148.82,6.714]
[1726810689508,0.2904495,148.91,148.83,20.32567938]
[1726810689900,0.2904495,148.91,148.82,14.93653662]
[1726810690997,6.7159,148.9,148.82,6.714]
[1726810692408,7.0059495,148.91,148.83,1.3434426]
[1726810693522,0.2904495,148.91,148.84,7.09047]
[1726810693816,0.2904495,148.91,148.85,1.34311874]
[1726810694001,0.2904495,148.91,148.86,1.34311681]
[1726810695304,0.2904495,148.91,148.84,7.09047]
[1726810696428,0.2904495,148.91,148.87,18.98233538]
[1726810696627,0.2904495,148.91,148.88,17.47290101]
[1726810697426,0.2904495,148.91,148.89,6.714]
[1726810697621,0.2904495,148.91,148.9,8.05673374]
[1726810697923,0.2904495,148.91,148.9,6.714]
[1726810698127,0.2904495,148.91,148.88,16.1301]
[1726810699208,0.2904495,148.91,148.89,0.12549]
[1726810699922,0.2904495,148.91,148.9,1.34269966]
[1726810700104,0.2904495,148.91,148.9,25.49605366]
[1726810700519,0.2904495,148.91,148.9,32.21005366]
[1726810701023,0.2904495,148.91,148.9,35.57993205]
[1726810701309,0.2904495,148.91,148.9,35.58013942]
[1726810701616,0.2904495,148.91,148.9,30.867354]
[1726810702127,0.2904495,148.91,148.9,34.23736614]
[1726810702432,0.2904495,148.91,148.9,6.83949]
[1726810703328,0.2904495,148.91,148.9,0.12549]
[1726810703520,0.2904495,148.91,148.89,53.776884]
[1726810704123,0.2904495,148.91,148.89,23.776884]
[1726810708227,0.2904495,148.91,148.88,22.8441]
[1726810708435,0.2904495,148.91,148.88,6.714]
[1726810708624,0.2904495,148.91,148.88,3.37090191]
[1726810708942,0.2904495,148.91,148.86,6.714]
[1726810709133,0.2904495,148.91,148.86,10.08490191]
[1726810709919,0.2904495,148.91,148.86,6.714]
[1726810710220,0.2904495,148.91,148.85,6.714]
[1726810710434,0.2904495,148.91,148.86,30.0]
[1726810710627,7.0058495,148.91,148.86,30.0]
[1726810711043,4.95e-05,148.91,148.88,18.98233538]
[1726810711243,4.95e-05,148.91,148.9,6.7159]
[1726810711918,4.95e-05,148.91,148.89,6.7163]
[1726810712345,7.5492,148.9,148.85,10.08579945]
[1726810712643,7.5492,148.9,148.85,6.714]
[1726810713128,7.5492,148.9,148.81,6.714]
[1726810713332,7.5492,148.9,148.87,6.7172]
[1726810714441,7.5492,148.9,148.85,6.7178]
[1726810714647,1.34070113,148.89,148.85,6.7181]
[1726810714941,14.2652,148.9,148.85,6.7181]
[1726810715650,7.5492,148.9,148.85,6.7181]
[1726810715948,7.5492,148.9,148.8,6.714]
[1726810715949,7.5492,148.9,148.86,6.7177]
[1726810717623,7.5492,148.9,148.82,8.0574176]
[1726810717824,7.5492,148.9,148.84,18.98233538]
[1726810718051,7.5492,148.9,148.89,6.7163]
[1726810726648,18.9061,148.92,148.87,6.714]
[1726810728362,18.9061,148.92,148.91,6.7154]
[1726810728945,18.9061,148.92,148.87,6.714]
[1726810729148,18.9061,148.92,148.87,6.7168]
[1726810729455,6.7155,148.91,148.87,6.7172]
[1726810729643,25.6211,148.92,148.87,6.7172]
[1726810730068,24.153354,148.91,148.8,19.23410738]
[1726810730246,24.153354,148.91,148.81,6.714]
[1726810730247,1.34070113,148.9,148.81,6.714]
[1726810730769,24.153354,148.91,148.86,6.7176]
[1726810731273,30.869154,148.91,148.86,6.7176]
[1726810732854,18.9061,148.92,148.83,6.714]
[1726810733050,25.6212,148.92,148.87,6.7172]
[1726810734266,6.7155,148.91,148.86,6.7176]
[1726810734870,6.7159,148.9,148.85,6.718]
[1726810738552,6.7159,148.9,148.81,6.714]
[1726810738553,30.870254,148.88,148.83,6.7189]
[1726810738762,17.9723,148.86,148.82,6.7194]
[1726810740775,17.9723,148.86,148.83,1.34372498]
[1726810741079,17.9723,148.86,148.8,8.32541556]
[1726810741377,17.9723,148.86,148.84,6.7185]
[1726810741960,17.9723,148.86,148.85,6.7181]
[1726810747988,7.2358,148.89,148.85,6.7181]
[1726810748165,7.2358,148.89,148.86,6.7176]
[1726810749271,7.2358,148.89,148.88,6.7168]
[1726810749569,7.2358,148.89,148.84,6.73]
[1726810749786,7.2358,148.89,148.81,24.153354]
[1726810750084,7.2358,148.89,148.84,6.7181]
[1726810750286,13.9523,148.89,148.84,6.7181]
[1726810750484,7.2358,148.89,148.85,6.718]
[1726810750684,7.2358,148.89,148.87,6.7172]
[1726810755779,7.2358,148.89,148.88,6.7168]
[1726810755975,18.502,148.9,148.89,6.7163]
[1726810756194,18.502,148.9,148.84,25.71233538]
[1726810756195,18.502,148.9,148.88,6.7167]
[1726810757072,18.502,148.9,148.87,6.7172]
[1726810759487,18.502,148.9,148.86,6.7177]
[1726810759693,26.55870113,148.9,148.86,6.7177]
[1726810759874,6.7163,148.89,148.84,6.7184]
[1726810760076,7.4389,148.88,148.83,8.41752672]
[1726810760379,6.7183,148.85,148.8,6.971772]
[1726810760571,6.7178,148.86,148.81,6.7199]
[1726810763686,30.619674,148.87,148.82,6.7194]
[1726810766892,23.902374,148.87,148.8,0.251772]
[1726810769606,23.902374,148.87,148.83,6.719]
[1726810772196,14.1558,148.88,148.84,6.7185]
[1726810773206,14.1558,148.88,148.8,20.47855266]
[1726810773584,14.1558,148.88,148.84,6.7185]
[1726810773781,7.4389,148.88,148.84,6.7185]
[1726810774576,14.1557,148.88,148.84,6.7185]
[1726810775300,7.4389,148.88,148.84,6.7185]
[1726810777703,14.1558,148.88,148.84,6.7185]
[1726810780805,7.4389,148.88,148.84,6.7185]
[1726810781184,7.4389,148.88,148.85,6.718]
[1726810782201,7.4389,148.88,148.84,6.7185]
[1726810784198,14.1558,148.88,148.84,6.7185]
[1726810785007,6.7174,148.87,148.82,6.719]
[1726810785185,6.7177,148.86,148.82,6.719]
[1726810785390,6.7177,148.86,148.81,6.7198]
[1726810785687,6.7177,148.86,148.82,6.7194]
[1726810790002,8.05800113,148.87,148.82,6.7194]
[1726810790201,6.7196,148.82,148.8,0.251772]
[1726810790516,1.34070113,148.81,148.8,0.251772]
[1726810790806,57.74175513,148.81,148.8,0.251772]
[1726810791792,56.401054,148.81,148.8,0.251772]
[1726810792995,56.150074,148.81,148.8,0.251772]
[1726810795292,76.150074,148.81,148.8,0.251772]
[1726810795799,76.275564,148.81,148.8,0.251772]
[1726810800224,76.150074,148.81,148.8,0.251772]
[1726810800718,25.5278,148.81,148.8,0.251772]
[1726810804004,56.150074,148.81,148.8,0.251772]
[1726810804326,20.12549,148.8,148.75,0.2554895]
[1726810804506,30.498684,148.77,148.75,0.2554895]
[1726810804700,1.34070113,148.76,148.75,0.2554895]
[1726810807921,37.860164,148.76,148.75,0.2554895]
[1726810808127,39.20086513,148.76,148.75,0.2554895]
[1726810809222,37.860164,148.76,148.75,0.2554895]
[1726810809415,31.012474,148.76,148.75,0.2554895]
[1726810810711,7.1101,148.76,148.75,0.2554895]
[1726810817027,25.03935384,148.81,148.75,0.2554895]
[1726810817329,18.0158,148.81,148.75,0.2554895]
[1726810817922,24.7358,148.81,148.77,6.7217]
[1726810818223,24.7358,148.81,148.75,0.2554895]
[1726810818711,6.7205,148.8,148.75,0.2554895]
[1726810818911,23.776884,148.77,148.75,0.2554895]
[1726810822611,0.12549,148.79,148.75,0.2554895]
[1726810822822,23.902374,148.79,148.75,6.9780895]
[1726810823134,30.623274,148.79,148.75,0.2554895]
[1726810823928,23.902374,148.77,148.75,0.2554895]
[1726810824110,25.24307513,148.77,148.75,0.2554895]
[1726810824735,30.624574,148.76,148.75,0.2554895]
[1726810828421,39.17036513,148.76,148.75,0.2554895]
[1726810829117,37.829664,148.76,148.75,0.2554895]
[1726810830238,39.17036513,148.76,148.75,0.2554895]
[1726810833544,37.829664,148.76,148.75,0.2554895]
[1726810836021,37.955154,148.76,148.75,0.2554895]
[1726810836222,37.955154,148.76,148.71,0.2554895]
[1726810836223,30.626374,148.72,148.71,0.2554895]
[1726810836422,30.751864,148.72,148.71,0.2554895]
[1726810838846,6.7231,148.74,148.71,0.2554895]
[1726810839353,26.724,148.72,148.71,0.2554895]
[1726810839866,23.83186351,148.75,148.71,0.2554895]
[1726810839867,7.02466351,148.75,148.71,0.2554895]
[1726810840026,26.7231,148.75,148.71,0.2554895]
[1726810840231,6.7236,148.73,148.71,0.2554895]
[1726810840640,6.84859,148.74,148.71,0.2554895]
[1726810841451,31.84118513,148.73,148.71,0.2554895]
[1726810841654,30.751864,148.72,148.71,0.2554895]
[1726810841873,30.877354,148.72,148.71,0.2554895]
[1726810842155,78.157254,148.72,148.71,0.2554895]
[1726810843544,78.157254,148.72,148.68,0.0684587]
[1726810843545,30.878754,148.69,148.68,0.0684587]
[1726810843745,30.753264,148.69,148.68,0.0684587]
[1726810843943,32.09396513,148.69,148.68,0.0684587]
[1726810845162,30.753264,148.69,148.68,0.0684587]
[1726810845455,30.878754,148.69,148.68,0.0684587]
[1726810846249,50.878754,148.69,148.68,0.0684587]
[1726810846680,50.753264,148.69,148.68,0.0684587]
[1726810846961,50.878754,148.69,148.68,0.0684587]
[1726810847160,52.21945513,148.69,148.68,0.0684587]
[1726810847548,30.879654,148.67,148.66,0.2554895]
[1726810847748,32.22035513,148.67,148.66,0.2554895]
[1726810848641,30.879654,148.67,148.66,0.2554895]
[1726810849769,77.90535513,148.67,148.66,0.2554895]
[1726810850069,77.90535513,148.67,148.63,0.1027186]
[1726810850070,6.7276,148.64,148.63,0.1027186]
[1726810850362,32.09616513,148.64,148.63,0.1027186]
[1726810851170,50.880954,148.64,148.63,0.1027186]
[1726810851864,50.755464,148.64,148.63,0.1027186]
[1726810852263,50.880954,148.64,148.63,0.1027186]
[1726810855163,42.5017,148.67,148.63,0.1027186]
[1726810855164,6.7272,148.65,148.63,0.1027186]
[1726810855348,26.7271,148.66,148.63,0.1027186]
[1726810855755,6.7272,148.65,148.63,0.1027186]
[1726810856554,25.11758513,148.64,148.63,0.1027186]
[1726810856762,32.22165513,148.64,148.63,0.1027186]
[1726810860271,50.881854,148.62,148.61,0.2554895]
[1726810860586,52.22255513,148.62,148.61,0.2554895]
[1726810861466,50.881854,148.62,148.61,0.2554895]
[1726810862279,27.10587,148.6,148.59,0.0684587]
[1726810862460,50.882754,148.6,148.59,0.0684587]
[1726810863187,52.22345513,148.6,148.59,0.0684587]
[1726810863363,7.4564,148.62,148.59,0.0684587]
[1726810863565,6.7277,148.64,148.59,0.0684587]
[1726810863765,26.1108,148.65,148.6,6.7294]
[1726810864069,6.7272,148.65,148.59,0.0684587]
[1726810864269,7.8051,148.66,148.59,0.0684587]
[1726810864580,7.8051,148.66,148.61,6.7287]
[1726810865471,19.2485,148.69,148.62,6.7284]
[1726810865674,6.7262,148.68,148.62,6.7284]
[1726810865977,6.7262,148.68,148.59,0.0684587]
[1726810865978,6.7276,148.65,148.6,6.7293]
[1726810866187,6.7276,148.65,148.59,6.7982587]
[1726810866368,8.06830113,148.64,148.59,0.0684587]
[1726810867066,23.776884,148.63,148.59,0.0684587]
[1726810867268,1.34070113,148.62,148.59,0.0684587]
[1726810868487,8.06920113,148.62,148.59,0.0684587]
[1726810868788,6.98038,148.6,148.59,0.0684587]
[1726810868973,32.09796513,148.6,148.59,0.0684587]
[1726810869168,52.09796513,148.6,148.59,0.0684587]
[1726810869567,50.757264,148.6,148.59,0.0684587]
[1726810870282,52.09796513,148.6,148.59,0.0684587]
[1726810870660,52.22345513,148.6,148.59,0.0684587]
[1726810872091,59.86085513,148.6,148.59,0.0684587]
[1726810872263,50.883654,148.58,148.57,0.2554895]
[1726810872463,70.00435513,148.58,148.57,0.2554895]
[1726810873262,50.759564,148.55,148.54,0.1027186]
[1726810873472,50.885054,148.55,148.54,0.1027186]
[1726810873777,50.885054,148.55,148.52,0.2554895]
[1726810873778,50.885954,148.53,148.52,0.2554895]
[1726810874186,50.885954,148.53,148.5,0.0684587]
[1726810874187,50.886854,148.51,148.5,0.0684587]
[1726810874495,50.886854,148.51,148.45,0.1027186]
[1726810874496,23.776884,148.46,148.45,0.1027186]
[1726810874690,23.776884,148.46,148.45,0.4000771]
[1726810874991,24.027864,148.46,148.45,0.4000771]
[1726810875170,23.902374,148.46,148.45,0.4000771]
[1726810875371,0.12549,148.49,148.45,0.4000771]
[1726810875567,44.027864,148.49,148.45,0.4000771]
[1726810875777,23.776884,148.49,148.45,7.1361771]
[1726810875967,20.0,148.5,148.45,7.1361771]
[1726810876180,23.902374,148.49,148.45,0.4000771]
[1726810876379,25.24307513,148.49,148.45,0.4000771]
[1726810876590,0.12549,148.5,148.45,0.4000771]
[1726810876889,30.636374,148.5,148.45,0.4000771]
[1726810877090,0.12549,148.5,148.45,0.4000771]
[1726810877287,20.0,148.5,148.45,0.4000771]
[1726810877491,1.34070113,148.49,148.45,0.4000771]
[1726810877671,6.86059,148.48,148.45,0.4000771]
[1726810877871,1.46619113,148.49,148.45,0.4000771]
[1726810877872,6.98548,148.49,148.45,0.4000771]
[1726810878276,6.7349,148.48,148.45,0.4000771]
[1726810878474,23.776884,148.47,148.45,0.4000771]
[1726810879702,23.902374,148.49,148.45,0.4000771]
[1726810879868,23.776884,148.49,148.46,6.7357]
[1726810880069,23.776884,148.49,148.45,0.4000771]
[1726810880267,23.902374,148.5,148.45,0.4000771]
[1726810880492,26.7331,148.52,148.47,6.7352]
[1726810880677,20.0,148.52,148.47,6.7352]
[1726810880881,21.34070113,148.52,148.45,0.4000771]
[1726810881069,20.0,148.52,148.45,0.4000771]
[1726810881272,6.7353,148.47,148.45,0.4000771]
[1726810881494,6.7349,148.49,148.45,0.4000771]
[1726810881696,26.7349,148.48,148.45,0.4000771]
[1726810881873,1.34070113,148.47,148.45,0.4000771]
[1726810882274,24.153354,148.49,148.45,0.4000771]
[1726810882473,24.027864,148.47,148.45,0.4000771]
[1726810883473,23.776884,148.48,148.45,0.4000771]
[1726810883798,6.7347,148.49,148.45,0.4000771]
[1726810883968,31.85278513,148.48,148.45,0.4000771]
[1726810884367,0.12549,148.47,148.45,0.4000771]
[1726810884782,23.776884,148.46,148.45,0.4000771]
[1726810884977,30.638174,148.46,148.45,0.4000771]
[1726810885798,23.776884,148.46,148.45,0.4000771]